Workbook

Sheet 汇总
A1: 三明生态康养城一期交付区门牌及楼栋标识采购安装工程发包价
A2: 地块 | B2: 税前总价（元） | C2: 备注
A3: C6高层 | B3: ='C6 高层'!J14 -> 128160
A4: C12 | B4: ='C12'!J9 -> 16280
A5: C13 | B5: ='C13'!J14 -> 154370
A6: 不含税合计 | B6: =SUM(B3:B5) -> 298810
A7: 备注：以上费用含除增值税外的一切费用。

Sheet C6 高层
A1: 三明生态康养城一期交付区门牌及楼栋标识采购安装工程发包价（C6地块高层）
A2: 序号 | B2: 项目 | C2: 物料名称 | D2: 参考图例（仅供示意） | E2: 参考尺寸（mm） （详见图纸） | F2: 工艺 （详见图纸） | G2: 数量 | H2: 单位 | I2: 单价(元) | J2: 总价（元） | K2: 备注
A3: 楼宇及室内部分标识
A4: 1 | B4: BA | C4: 楼栋牌 | E4: 1485*800*60 | F4: 围边1.2mmTHK.304#不锈钢围边成型， 面板1.5mmTHK.304#不锈钢围边成型， 字壳厚度60mm 竖纹拉丝， 表面镀古铜效果（同展示区） 背面化学锚栓安装于安装面 四边耐候性密封胶固定 不可溢胶 | G4: 8 | H4: 块 | I4: 1600 | J4: =G4*I4 -> 12800
A5: 2 | B5: BB | C5: 单元牌 | E5: 400*400*20 | F5: 1.5mmTHK.304#不锈钢切割折弯成型， 横纹拉丝，表面氧化着色（同展示区） LOGO蚀刻填色 内凹5mm 5mmTHK.304#不锈钢切割成型， 横纹拉丝，表面氧化着色（同展示区） 背面种钉安装于安装面 四边耐候性密封胶固定 不可溢胶 | G5: 4 | H5: 块 | I5: 280 | J5: =G5*I5 -> 1120
A6: 3 | B6: BC | C6: 电梯厅楼层牌 | E6: 120*142*10 | F6: 面板1.5mmTHK.304#不锈钢围边成型， 围边1.2mmTHK.304#不锈钢围边成型， 横纹拉丝,镀暗古铜效果(同展示区) 字壳厚度10mm 耐候胶粘贴安装 不可溢胶 | G6: 228 | H6: 块 | I6: 100 | J6: 22800
A7: 4 | B7: BD | C7: 住户门牌 | E7: 200*80*5 | F7: 5mmTHK.亚克力板切割成型 表面喷金属漆PANTONE 875 C 内容丝印 耐候胶粘贴安装 不可溢胶 | G7: 752 | H7: 块 | I7: 25 | J7: 18800
A8: 5 | B8: BE | C8: 消防梯楼层标识 | E8: 355*240*5 | F8: 5mmTHK.亚克力板切割成型 表面喷金属漆PANTONE 875 C 内容丝印 耐候胶粘贴安装 不可溢胶 | G8: 236 | H8: 块 | I8: 40 | J8: 9440
A9: 地下车库导示标识
A10: 6 | B10: GB | C10: 地库出入口龙门牌 | E10: 7250*700*60 | F10: 1.5mmTHK.304#不锈钢激光切割折弯焊接成型 表面烤漆深灰PANTONE Black7C 内容3M反光膜雕刻粘贴 背面种钉安装 四边耐候胶固定 不可溢胶 | G10: 2 | H10: 块 | I10: 4500 | J10: 9000
A11: 7 | B11: GC | C11: 地库索引灯箱 | E11: 2200*300*80 | F11: Ø20mm不锈钢圆管切割成型 表面烤漆深灰PANTONE Black 7 C 1.5mmTHK.304#不锈钢激光切割折弯焊接成型 表面烤漆深灰PANTONE Black 7 C 内容3M反光膜雕刻粘贴 | G11: 23 | H11: 块 | I11: 1600 | J11: 36800
A12: 8 | B12: GD | C12: 电梯厅入口索引灯箱 | E12: 1500*300*80 | F12: Ø20mm不锈钢圆管切割成型 表面烤漆深灰PANTONE Black 7 C 1.5mmTHK.304#不锈钢激光切割折弯焊接成型 表面烤漆深灰PANTONE Black 7 C 内容3M反光膜雕刻粘贴 | G12: 12 | H12: 块 | I12: 1000 | J12: 12000
A13: 9 | B13: GE | C13: 电梯厅入口处标识 | E13: 598*500*40 | F13: 面板1.5mmTHK.304#不锈钢切割成型， 围边1.2mmTHK.304#不锈钢切割成型， 字壳厚度30mm，表面镀古铜效果， 同展示区 横纹拉丝， 背面种钉安装 耐候胶固定于石材面 不可溢胶 | G13: 12 | H13: 块 | I13: 450 | J13: 5400
A14: 不含税合计 | I14: / | J14: =SUM(J4:J8)+SUM(J10:J13) -> 128160
A15: 备注：表中单价、总价均为税前价格，以上单价包含制作、预埋、安装、运输、维护、管理费及利润等除税金外一切费用。

Sheet C12
A1: 三明生态康养城一期交付区门牌及楼栋标识采购安装工程发包价（C12）
A2: 序号 | B2: 项目 | C2: 物料名称 | D2: 参考图例（仅供示意） | E2: 参考尺寸（mm） （详见图纸） | F2: 工艺 （详见图纸） | G2: 数量 | H2: 单位 | I2: 单价（元） | J2: 总价（元） | K2: 备注
A3: 园区标识
A4: 1 | B4: EE | C4: 楼栋牌 | E4: 1127*800*60 | F4: 围边1.2mmTHK.304#不锈钢围边成型， 面板1.5mmTHK.304#不锈钢围边成型， 字壳厚度60mm 竖纹拉丝， 表面镀古铜效果（同展示区） 背面化学锚栓安装于安装面 四边耐候性密封胶固定 不可溢胶 | G4: 6 | H4: 块 | I4: 1600 | J4: =G4*I4 -> 9600
A5: 2 | B5: EF | C5: 建筑入口标识 | E5: 400*400*20 | F5: 1.5mmTHK.304#不锈钢切割折弯成型， 横纹拉丝，表面氧化着色（同展示区） LOGO蚀刻填色 内凹5mm 5mmTHK.304#不锈钢切割成型， 横纹拉丝，表面氧化着色（同展示区） 背面种钉安装于安装面 四边耐候性密封胶固定 不可溢胶 | G5: 8 | H5: 块 | I5: 300 | J5: 2400
A6: 楼宇及室内部分标识
A7: 3 | B7: BA | C7: 电梯楼层标识 | E7: 120*142*10 | F7: 面板1.5mmTHK.304#不锈钢围边成型， 围边1.2mmTHK.304#不锈钢围边成型， 横纹拉丝,镀暗古铜效果(同展示区) 字壳厚度10mm 耐候胶粘贴安装 不可溢胶 | G7: 28 | H7: 块 | I7: 100 | J7: 2800
A8: 4 | B8: BC | C8: 消防梯楼层标识 | E8: 355*240*5 | F8: 5mmTHK.亚克力板切割成型 表面喷金属漆PANTONE 875 C 内容丝印 耐候胶粘贴安装 不可溢胶 | G8: 37 | H8: 块 | I8: 40 | J8: 1480
A9: 不含税合计 | I9: / | J9: =J4+J5+J7+J8 -> 16280
A10: 备注：表中单价、总价均为税前价格，以上单价包含制作、预埋、安装、运输、维护、管理费及利润等除税金外一切费用。

Sheet C13
A1: 三明生态康养城一期交付区门牌及楼栋标识采购安装工程发包价（C13）
A2: 序号 | B2: 项目 | C2: 物料名称 | D2: 参考图例（仅供示意） | E2: 参考尺寸（mm） （详见图纸） | F2: 工艺 （详见图纸） | G2: 数量 | H2: 单位 | I2: 单价（元） | J2: 总价（元） | K2: 备注
A3: 楼宇及室内部分标识
A4: 1 | B4: BA | C4: 楼栋牌 | E4: 1794*800*60 | F4: 围边1.2mmTHK.304#不锈钢围边成型， 面板1.5mmTHK.304#不锈钢围边成型， 字壳厚度60mm 竖纹拉丝， 表面镀古铜效果（同展示区） 背面化学锚栓安装于安装面 四边耐候性密封胶固定 不可溢胶 | G4: 12 | H4: 块 | I4: 1600 | J4: =G4*I4 -> 19200
A5: 2 | B5: BB | C5: 单元牌 | E5: 400*400*20 | F5: 1.5mmTHK.304#不锈钢切割折弯成型， 横纹拉丝，表面氧化着色（同展示区） LOGO蚀刻填色 内凹5mm 5mmTHK.304#不锈钢切割成型， 横纹拉丝，表面氧化着色（同展示区） 背面种钉安装于安装面 四边耐候性密封胶固定 不可溢胶 | G5: 6 | H5: 块 | I5: 250 | J5: =G5*I5 -> 1500
A6: 3 | B6: BC | C6: 电梯厅楼层牌 | E6: 120*142*10 | F6: 面板1.5mmTHK.304#不锈钢围边成型， 围边1.2mmTHK.304#不锈钢围边成型， 横纹拉丝,镀暗古铜效果(同展示区) 字壳厚度10mm 耐候胶粘贴安装 不可溢胶 | G6: 234 | H6: 块 | I6: 100 | J6: 23400
A7: 4 | B7: BD | C7: 住户门牌 | E7: 200*80*5 | F7: 5mmTHK.亚克力板切割成型 表面喷金属漆PANTONE 875 C 内容丝印 耐候胶粘贴安装 不可溢胶 | G7: 774 | H7: 块 | I7: 25 | J7: 19350
A8: 5 | B8: BE | C8: 消防梯楼层标识 | E8: 355*240*5 | F8: 5mmTHK.亚克力板切割成型 表面喷金属漆PANTONE Black 7 C 内容丝印 耐候胶粘贴安装 不可溢胶 | G8: 358 | H8: 块 | I8: 40 | J8: 14320
A9: 地下车库导示标识
A10: 6 | B10: GB | C10: 地库出入口龙门牌 | E10: 7250*700*60 | F10: 1.5mmTHK.304#不锈钢激光切割折弯焊接成型 表面烤漆深灰PANTONE Black7C 内容3M反光膜雕刻粘贴 背面种钉安装 四边耐候胶固定 不可溢胶 | G10: 2 | H10: 块 | I10: 4500 | J10: 9000
A11: 7 | B11: GC | C11: 地库索引灯箱 | E11: 2200*300*80 | F11: Ø20mm不锈钢圆管切割成型 表面烤漆深灰PANTONE Black 7 C 1.5mmTHK.304#不锈钢激光切割折弯焊接成型 表面烤漆深灰PANTONE Black 7 C 内容3M反光膜雕刻粘贴 | G11: 35 | H11: 块 | I11: 1600 | J11: =G11*I11 -> 56000
A12: 8 | B12: GD | C12: 电梯厅入口索引灯箱 | E12: 1500*300*80 | F12: Ø20mm不锈钢圆管切割成型 表面烤漆深灰PANTONE Black 7 C 1.5mmTHK.304#不锈钢激光切割折弯焊接成型 表面烤漆深灰PANTONE Black 7 C 内容3M反光膜雕刻粘贴 | G12: 8 | H12: 块 | I12: 1000 | J12: 8000
A13: 9 | B13: GE | C13: 电梯厅入口处标识 | E13: 779*500*40 | F13: 面板1.5mmTHK.304#不锈钢切割成型， 围边1.2mmTHK.304#不锈钢切割成型， 字壳厚度30mm，表面镀古铜效果， 同展示区 横纹拉丝， 背面种钉安装 耐候胶固定于石材面 不可溢胶 | G13: 8 | H13: 块 | I13: 450 | J13: 3600
A14: 不含税合计 | I14: / | J14: =SUM(J4:J8)+SUM(J10:J13) -> 154370
A15: 备注：表中单价、总价均为税前价格，以上单价包含制作、预埋、安装、运输、维护、管理费及利润等除税金外一切费用。
